fUSD/lending_fUSD_20240518
["ID","MTS","AMOUNT","RATE_DAILY","PERIOD"]
[327387418,1716037866037,-500.0,0.00033424,9]
[327387419,1716037866048,-500.0,0.00033424,9]
[327387420,1716037866059,-500.0,0.00033424,9]
[327387421,1716037866069,-511.16906866,0.00033424,9]
[327387422,1716037866086,-500.0,0.00033424,9]
[327387423,1716037866099,-507.42,0.00033424,9]
[327387424,1716037866112,-581.37198397,0.00033424,9]
[327387425,1716037866123,-500.0,0.00033424,9]
[327387426,1716037866135,-535.08408819,0.00033424,9]
[327387427,1716037866146,-151.0,0.00033424,7]
[327387428,1716037866161,-500.0,0.00033424,9]
[327387429,1716037866173,-151.0,0.00033424,7]
[327387430,1716037866183,-151.0,0.00033424,7]
[327387431,1716037866195,-151.0,0.00033424,7]
[327387432,1716037866206,-224.975055,0.00033424,7]
[327387433,1716037866218,-500.0,0.00033424,9]
[327387434,1716037866230,-500.0,0.00033424,9]
[327387435,1716037866241,-500.0,0.00033424,9]
[327387436,1716037866252,-500.0,0.00033424,9]
[327387437,1716037866263,-500.0,0.00033424,9]
[327387438,1716037866274,-500.0,0.00033424,9]
[327387439,1716037866286,-500.0,0.00033424,9]
[327387440,1716037866298,-151.0,0.00033424,7]
[327387441,1716037866309,-151.0,0.00033424,7]
[327387442,1716037866321,-151.0,0.00033424,7]
[327387443,1716037866333,-500.0,0.00033424,9]
[327387444,1716037866345,-4384.6,0.00033424,9]
[327387445,1716037866356,-151.0,0.00033424,7]
[327387446,1716037866368,-197.714361,0.00033424,7]
[327387447,1716037866380,-301.41434218,0.00033424,7]
[327387448,1716037866391,-500.0,0.00033424,9]
[327387449,1716037866402,-197.714361,0.00033424,7]
[327387450,1716037866414,-197.714361,0.00033424,7]
[327387451,1716037866425,-197.714365,0.00033424,7]
[327387452,1716037866436,-500.0,0.00033424,9]
[327387453,1716037866448,-500.0,0.00033424,9]
[327387454,1716037866459,-500.0,0.00033424,9]
[327387455,1716037866471,-500.0,0.00033424,9]
[327387456,1716037866482,-500.0,0.00033424,9]
[327387457,1716037866494,-500.0,0.00033424,9]
[327387458,1716037866505,-500.0,0.00033424,9]
[327387459,1716037866516,-152.05339883,0.00033424,9]
[327387460,1716037866528,-500.0,0.00033424,9]
[327387461,1716037866539,-500.0,0.00033424,9]
[327387462,1716037866551,-500.0,0.00033424,9]
[327387463,1716037866563,-500.0,0.00033424,9]
[327387464,1716037866575,-500.0,0.00033424,9]
[327387465,1716037866586,-500.0,0.00033424,9]
[327387466,1716037866598,-3448.05,0.00033424,9]
[327387467,1716037866609,-500.0,0.00033424,9]
[327387468,1716037866620,-500.0,0.00033424,9]
[327387469,1716037866632,-500.0,0.00033424,9]
[327387470,1716037866643,-500.0,0.00033424,9]
[327387471,1716037866654,-500.0,0.00033424,9]
[327387472,1716037866667,-500.0,0.00033424,9]
[327387473,1716037866678,-4209.38,0.00033424,9]
[327387474,1716037866689,-500.0,0.00033424,9]
[327387475,1716037866701,-1094.2,0.00033424,9]
[327387476,1716037866713,-500.0,0.00033424,9]
[327387477,1716037866724,-500.0,0.00033424,9]
[327387478,1716037866736,-500.0,0.00033424,9]
[327387479,1716037866747,-500.0,0.00033424,9]
[327387480,1716037866759,-500.0,0.00033424,9]
[327387481,1716037866770,-500.0,0.00033424,9]
[327387482,1716037866781,-4208.47,0.00033424,9]
[327387483,1716037866793,-598.07,0.00033424,9]
[327387484,1716037866804,-500.0,0.00033424,9]
[327387485,1716037866815,-595.9,0.00033424,9]
[327387486,1716037866827,-764.87,0.00033424,9]
[327387487,1716037866838,-500.0,0.00033424,9]
[327387488,1716037866850,-632.26626102,0.00033424,9]
[327387489,1716037866861,-7506.74,0.00033424,9]
[327387490,1716037866872,-1716.7,0.00033424,9]
[327387491,1716037866884,-151.0,0.00033424,7]
[327387492,1716037866895,-151.0,0.00033424,7]
[327387493,1716037866906,-588.77689232,0.00033424,9]
[327387494,1716037866920,-3051.98,0.00033424,9]
[327387495,1716037866931,-500.0,0.00033424,9]
[327387496,1716037866943,-500.0,0.00033424,9]
[327387497,1716037866954,-500.0,0.00033424,9]
[327387498,1716037866965,-907.52,0.00033424,9]
[327387499,1716037866979,-151.0,0.00033424,7]
[327387500,1716037866990,-224.063021,0.00033424,7]
[327387501,1716037867005,-2043.57,0.00033424,9]
[327387502,1716037867017,-500.0,0.00033424,9]
[327387503,1716037867028,-1826.69,0.00033424,9]
[327387504,1716037867040,-237.836615,0.00033424,7]
[327387505,1716037867051,-585.39,0.00033424,9]
[327387506,1716037867063,-700.47,0.00033424,9]
[327387507,1716037867075,-347.32901027,0.00033424,9]
[327387508,1716037867086,-737.2,0.00033424,9]
[327387509,1716037867097,-190.978531,0.00033424,7]
[327387510,1716037867108,-500.0,0.00033424,9]
[327387511,1716037867119,-190.978531,0.00033424,7]
[327387512,1716037867130,-190.978531,0.00033424,7]
[327387513,1716037867141,-700.7,0.00033424,9]
[327387514,1716037867152,-500.0,0.00033424,9]
[327387515,1716037867165,-190.978531,0.00033424,7]
[327387516,1716037867176,-190.978531,0.00033424,7]
[327387517,1716037867188,-190.978528,0.00033424,7]
[327387518,1716037867200,-2274.52,0.00033424,9]
[327387519,1716037867211,-500.0,0.00033424,9]
[327387520,1716037867223,-836.83,0.00033424,9]
[327387521,1716037867235,-500.0,0.00033424,9]
[327387522,1716037867246,-840.37,0.00033424,9]
[327387523,1716037867258,-820.2,0.00033424,9]
[327387524,1716037867269,-500.0,0.00033424,9]
[327387525,1716037867280,-921.93,0.00033424,9]
[327387526,1716037867291,-7455.38,0.00033424,9]
[327387527,1716037867302,-1515.21,0.00033424,9]
[327387528,1716037867314,-8974.07,0.00033424,9]
[327387529,1716037867326,-2511.84,0.00033424,9]
[327387530,1716037867337,-519.450129,0.00033424,7]
[327387531,1716037867349,-519.450129,0.00033424,7]
[327387532,1716037867361,-519.450129,0.00033424,7]
[327387533,1716037867372,-500.0,0.00033424,9]
[327387534,1716037867384,-2531.53,0.00033424,9]
[327387535,1716037867395,-519.450129,0.00033424,7]
[327387536,1716037867407,-519.450129,0.00033424,7]
[327387537,1716037867420,-519.450136,0.00033424,7]
[327387538,1716037867431,-215.556204,0.00033424,7]
[327387539,1716037867442,-623.05,0.00033424,9]
[327387540,1716037867454,-215.556204,0.00033424,7]
[327387541,1716037867466,-215.556204,0.00033424,7]
[327387542,1716037867477,-500.0,0.00033424,9]
[327387543,1716037867489,-5773.11,0.00033424,9]
[327387544,1716037867500,-702.74,0.00033424,9]
[327387545,1716037867512,-215.556204,0.00033424,7]
[327387546,1716037867524,-215.556204,0.00033424,7]
[327387547,1716037867535,-511.33,0.00033424,9]
[327387548,1716037867547,-500.0,0.00033424,9]
[327387549,1716037867559,-215.556203,0.00033424,7]
[327387550,1716037867571,-1832.82,0.00033424,9]
[327387551,1716037867583,-9137.84,0.00033424,9]
[327387552,1716037867594,-712.17,0.00033424,9]
[327387553,1716037867606,-500.0,0.00033424,9]
[327387554,1716037867617,-151.0,0.00033424,7]
[327387555,1716037867628,-151.0,0.00033424,7]
[327387556,1716037867639,-500.0,0.00033424,9]
[327387557,1716037867650,-151.0,0.00033424,7]
[327387558,1716037867663,-254.11238477,0.00033424,9]
[327387559,1716037867674,-500.0,0.00033424,9]
[327387560,1716037867685,-151.0,0.00033424,7]
[327387561,1716037867695,-500.0,0.00033424,9]
[327387562,1716037867707,-256.562002,0.00033424,7]
[327387563,1716037867718,-1123.254539,0.00033424,7]
[327387564,1716037867729,-1123.254539,0.00033424,7]
[327387565,1716037867740,-1123.254539,0.00033424,7]
[327387566,1716037867752,-1036.52,0.00033424,9]
[327387567,1716037867764,-2590.9,0.00033424,9]
[327387568,1716037867775,-1123.254539,0.00033424,7]
[327387569,1716037867787,-1123.254539,0.00033424,7]
[327387570,1716037867799,-1123.254533,0.00033424,7]
[327387571,1716037867810,-500.0,0.00033424,9]
[327387572,1716037867821,-678.94,0.00033424,9]
[327387573,1716037868083,-500.0,0.00033424,9]
[327387574,1716037868097,-1267.82,0.00033424,9]
[327387575,1716037868107,-1009.99,0.00033424,9]
[327387576,1716037868116,-500.0,0.00033424,9]
[327387577,1716037868126,-500.0,0.00033424,9]
[327387578,1716037868135,-1152.5,0.00033424,9]
[327387579,1716037868144,-500.0,0.00033424,9]
[327387580,1716037868153,-500.0,0.00033424,9]
[327387581,1716037868164,-500.0,0.00033424,9]
[327387582,1716037868173,-2510.28,0.00033424,9]
[327387583,1716037868182,-1670.98,0.00033424,9]
[327387584,1716037868190,-500.0,0.00033424,9]
[327387585,1716037868200,-590.78,0.00033424,9]
[327387586,1716037868209,-500.0,0.00033424,9]
[327387587,1716037868218,-151.0,0.00033424,7]
[327387588,1716037868228,-151.0,0.00033424,7]
[327387589,1716037868237,-151.0,0.00033424,7]
[327387590,1716037868246,-500.0,0.00033424,9]
[327387591,1716037868255,-500.0,0.00033424,9]
[327387592,1716037868265,-500.0,0.00033424,9]
[327387593,1716037868274,-500.0,0.00033424,9]
[327387594,1716037868283,-500.0,0.00033424,9]
[327387595,1716037868294,-802.51,0.00033424,9]
[327387596,1716037868303,-639.2,0.00033424,9]
[327387597,1716037868312,-500.0,0.00033424,9]
[327387598,1716037868322,-689.9,0.00033424,9]
[327387599,1716037868332,-500.0,0.00033424,9]
[327387600,1716037868342,-500.0,0.00033424,9]
[327387601,1716037868351,-625.95,0.00033424,9]
[327387602,1716037868361,-500.0,0.00033424,9]
[327387603,1716037868370,-664.13,0.00033424,9]
[327387604,1716037868380,-750.36,0.00033424,9]
[327387605,1716037868389,-500.0,0.00033424,9]
[327387606,1716037868399,-565.21,0.00033424,9]
[327387607,1716037868409,-641.52,0.00033424,9]
[327387608,1716037868421,-500.0,0.00033424,9]
[327387609,1716037868430,-590.92,0.00033424,9]
[327387610,1716037868439,-606.54,0.00033424,9]
[327387611,1716037868448,-647.27,0.00033424,9]
[327387612,1716037868457,-500.0,0.00033424,9]
[327387613,1716037868466,-500.0,0.00033424,9]
[327387614,1716037868476,-400.007852,0.00033424,7]
[327387615,1716037868485,-400.007852,0.00033424,7]
[327387616,1716037868494,-3279.39,0.00033424,9]
[327387617,1716037868504,-400.007852,0.00033424,7]
[327387618,1716037868513,-638.61,0.00033424,9]
[327387619,1716037868522,-2346.32,0.00033424,9]
[327387620,1716037868531,-400.007852,0.00033424,7]
[327387621,1716037868540,-400.007852,0.00033424,7]
[327387622,1716037868549,-500.0,0.00033424,9]
[327387623,1716037868559,-500.0,0.00033424,9]
[327387624,1716037868567,-400.007847,0.00033424,7]
[327387625,1716037868577,-500.0,0.00033424,9]
[327387626,1716037868586,-500.0,0.00033424,9]
[327387627,1716037868595,-1003.61,0.00033424,9]
[327387628,1716037868604,-1069.59,0.00033424,9]
[327387629,1716037868615,-500.0,0.00033424,9]
[327387630,1716037868624,-500.0,0.00033424,9]
[327387631,1716037868633,-540.35,0.00033424,9]
[327387632,1716037868641,-151.0,0.00033424,7]
[327387633,1716037868650,-716.22,0.00033424,9]
[327387634,1716037868660,-151.0,0.00033424,7]
[327387635,1716037868672,-186.569006,0.00033424,7]
[327387636,1716037868682,-713.67,0.00033424,9]
[327387637,1716037868691,-500.0,0.00033424,9]
[327387638,1716037868701,-584.92,0.00033424,9]
[327387639,1716037868710,-151.0,0.00033424,7]
[327387640,1716037868719,-708.32,0.00033424,9]
[327387641,1716037868729,-1139.23,0.00033424,9]
[327387642,1716037868738,-500.0,0.00033424,9]
[327387643,1716037868747,-500.0,0.00033424,9]
[327387644,1716037868756,-500.0,0.00033424,9]
[327387645,1716037868765,-1313.94,0.00033424,9]
[327387646,1716037868774,-623.23,0.00033424,9]
[327387647,1716037868784,-807.37,0.00033424,9]
[327387648,1716037868793,-500.0,0.00033424,9]
[327387649,1716037868802,-264.407558,0.00033424,7]
[327387650,1716037868811,-500.0,0.00033424,9]
[327387651,1716037868820,-264.407558,0.00033424,7]
[327387652,1716037868830,-500.0,0.00033424,9]
[327387653,1716037868839,-264.407558,0.00033424,7]
[327387654,1716037868849,-264.407558,0.00033424,7]
[327387655,1716037868859,-264.407558,0.00033424,7]
[327387656,1716037868868,-2403.43,0.00033424,9]
[327387657,1716037868878,-264.407551,0.00033424,7]
[327387658,1716037868887,-2238.54,0.00033424,9]
[327387659,1716037868896,-826.94,0.00033424,9]
[327387660,1716037868905,-500.0,0.00033424,9]
[327387661,1716037868917,-500.0,0.00033424,9]
[327387662,1716037868926,-500.0,0.00033424,9]
[327387663,1716037868935,-500.0,0.00033424,9]
[327387664,1716037868944,-500.0,0.00033424,9]
[327387665,1716037868954,-919.71,0.00033424,9]
[327387666,1716037868963,-1489.48,0.00033424,9]
[327387667,1716037868971,-774.89,0.00033424,9]
[327387668,1716037868980,-832.57,0.00033424,9]
[327387669,1716037868990,-866.0,0.00033424,9]
[327387670,1716037869001,-500.0,0.00033424,9]
[327387671,1716037869011,-500.0,0.00033424,9]
[327387672,1716037869020,-500.0,0.00033424,9]
[327387673,1716037869030,-188.72,0.00033424,9]
[327387674,1716037869040,-1646.67,0.00033424,9]
[327387675,1716037869050,-500.0,0.00033424,9]
[327387676,1716037869059,-500.0,0.00033424,9]
[327387677,1716037869069,-500.0,0.00033424,9]
[327387678,1716037869079,-968.15,0.00033424,9]
[327387679,1716037869089,-500.0,0.00033424,9]
[327387680,1716037869098,-674.97,0.00033424,9]
[327387681,1716037869108,-993.98,0.00033424,9]
[327387682,1716037869118,-1957.6,0.00033424,9]
[327387683,1716037869127,-2230.18,0.00033424,9]
[327387684,1716037869137,-801.07,0.00033424,9]
[327387685,1716037869147,-500.0,0.00033424,9]
[327387686,1716037869156,-741.02,0.00033424,9]
[327387687,1716037869166,-1827.65,0.00033424,9]
[327387688,1716037869176,-1057.58,0.00033424,9]
[327387689,1716037869186,-500.0,0.00033424,9]
[327387690,1716037869196,-536.68,0.00033424,9]
[327387691,1716037869205,-500.0,0.00033424,9]
[327387692,1716037869215,-500.0,0.00033424,9]
[327387693,1716037869225,-746.56,0.00033424,9]
[327387694,1716037869235,-501.31,0.00033424,9]
[327387695,1716037869246,-798.97,0.00033424,9]
[327387696,1716037869255,-835.18,0.00033424,9]
[327387697,1716037869265,-500.0,0.00033424,9]
[327387698,1716037869275,-180.156229,0.00033424,7]
[327387699,1716037869286,-180.156229,0.00033424,7]
[327387700,1716037869296,-673.73,0.00033424,9]
[327387701,1716037869307,-1084.96,0.00033424,9]
[327387702,1716037869316,-500.0,0.00033424,9]
[327387703,1716037869327,-933.58,0.00033424,9]
[327387704,1716037869338,-746.5,0.00033424,9]
[327387705,1716037869348,-500.0,0.00033424,9]
[327387706,1716037869359,-180.156229,0.00033424,7]
[327387707,1716037869370,-500.0,0.00033424,9]
[327387708,1716037869379,-180.156226,0.00033424,7]
[327387709,1716037869390,-1241.44,0.00033424,9]
[327387710,1716037869401,-822.17,0.00033424,9]
[327387711,1716037869412,-500.0,0.00033424,9]
[327387712,1716037869422,-151.0,0.00033424,7]
[327387713,1716037869430,-248.240428,0.00033424,7]
[327387714,1716037869440,-500.0,0.00033424,9]
[327387715,1716037869449,-500.0,0.00033424,9]
[327387716,1716037869458,-500.0,0.00033424,9]
[327387717,1716037869468,-521.43,0.00033424,9]
[327387718,1716037869478,-560.614832,0.00033424,7]
[327387719,1716037869487,-560.614832,0.00033424,7]
[327387720,1716037869497,-500.0,0.00033424,9]
[327387721,1716037869507,-500.0,0.00033424,9]
[327387722,1716037869517,-500.0,0.00033424,9]
[327387723,1716037869526,-811.33,0.00033424,9]
[327387724,1716037869536,-1249.21,0.00033424,9]
[327387725,1716037869545,-560.614832,0.00033424,7]
[327387726,1716037869555,-560.614823,0.00033424,7]
[327387727,1716037869564,-500.0,0.00033424,9]
[327387728,1716037869574,-500.0,0.00033424,9]
[327387729,1716037869583,-500.0,0.00033424,9]
[327387730,1716037869593,-585.76,0.00033424,9]
[327387731,1716037869603,-3626.74,0.00033424,9]
[327387732,1716037869612,-500.0,0.00033424,9]
[327387733,1716037869621,-1014.71,0.00033424,9]
[327387734,1716037869630,-500.0,0.00033424,9]
[327387735,1716037869640,-335.77039,0.00033424,7]
[327387736,1716037869649,-335.77039,0.00033424,7]
[327387737,1716037869659,-500.0,0.00033424,9]
[327387738,1716037869669,-976.25,0.00033424,9]
[327387739,1716037869679,-335.77039,0.00033424,7]
[327387740,1716037869689,-500.0,0.00033424,9]
[327387741,1716037869699,-335.7704,0.00033424,7]
[327387742,1716037869709,-500.0,0.00033424,9]
[327387743,1716037869718,-556.69,0.00033424,9]
[327387744,1716037869728,-7478.95,0.00033424,9]
[327387745,1716037869737,-500.0,0.00033424,9]
[327387746,1716037869747,-854.86,0.00033424,9]
[327387747,1716037869756,-5091.63,0.00033424,9]
[327387748,1716037869766,-500.0,0.00033424,9]
[327387749,1716037869776,-1405.52,0.00033424,9]
[327387750,1716037869786,-500.0,0.00033424,9]
[327387751,1716037869795,-2237.55,0.00033424,9]
[327387752,1716037869804,-500.0,0.00033424,9]
[327387753,1716037869814,-626.37,0.00033424,9]
[327387754,1716037869824,-500.0,0.00033424,9]
[327387755,1716037869834,-500.0,0.00033424,9]
[327387756,1716037869844,-625.43,0.00033424,9]
[327387757,1716037869854,-2170.46,0.00033424,9]
[327387758,1716037869864,-500.0,0.00033424,7]
[327387759,1716037869874,-500.0,0.00033424,9]
[327387760,1716037869884,-910.2,0.00033424,9]
[327387761,1716037869894,-727.05,0.00033424,9]
[327387762,1716037869904,-659.01,0.00033424,9]
[327387763,1716037869916,-3123.77,0.00033424,9]
[327387764,1716037869925,-500.0,0.00033424,9]
[327387765,1716037869935,-500.0,0.00033424,9]
[327387766,1716037869944,-500.0,0.00033424,9]
[327387767,1716037869954,-500.0,0.00033424,7]
[327387768,1716037869963,-500.0,0.00033424,9]
[327387769,1716037869972,-151.0,0.00033424,7]
[327387770,1716037869982,-1519.17,0.00033424,9]
[327387771,1716037869992,-2958.48713342,0.00033424,9]
[327387772,1716037870374,-594.63286658,0.00033424,9]
[327387773,1716037870384,-8103.97945902,0.00033474,5]
[327387774,1716037870394,-2000.0,0.00033537,2]
[327387775,1716037870404,-500.0,0.0003355,2]
[327387776,1716037870416,-500.0,0.00033597,9]
[327387777,1716037870426,-488.82,0.00033659,2]
[327387778,1716037870435,-500.0,0.00033697,9]
[327387779,1716037870445,-500.0,0.00033697,9]
[327387780,1716037870455,-500.0,0.00033698,9]
[327387781,1716037870465,-500.0,0.00033698,9]
[327387782,1716037870475,-500.0,0.00033698,9]
[327387783,1716037870484,-529.2448624,0.00033698,9]
[327387784,1716037870494,-500.0,0.00033698,9]
[327387785,1716037870504,-500.0,0.00033698,9]
[327387786,1716037870514,-500.0,0.00033698,9]
[327387787,1716037870524,-500.0,0.00033698,9]
[327387788,1716037870534,-602.71,0.00033698,9]
[327387789,1716037870543,-500.0,0.00033698,9]
[327387790,1716037870554,-500.0,0.00033698,9]
[327387791,1716037870563,-524.4534069,0.00033698,9]
[327387792,1716037870573,-515.43319799,0.00033698,9]
[327387793,1716037870583,-236.18651566,0.00033698,9]
[327387794,1716037870613,-685.99323766,0.00032799,4]
[327387795,1716037870624,-500.0,0.00033424,9]
[327387796,1716037870634,-263.81348434,0.00033698,9]
[327387797,1716037870644,-525.11419458,0.00033698,9]
[327387798,1716037870654,-500.0,0.00033698,9]
[327387799,1716037870665,-500.0,0.00033698,9]
[327387800,1716037870675,-500.0,0.00033698,9]
[327387801,1716037870686,-752.32,0.00033698,9]
[327387802,1716037870696,-500.0,0.00033698,9]
[327387803,1716037870705,-1118.29,0.00033698,9]
[327387804,1716037870716,-500.0,0.00033698,9]
[327387805,1716037870726,-279.23459306,0.00033698,9]
[327387806,1716037870736,-500.0,0.00033698,9]
[327387807,1716037870746,-500.0,0.00033698,9]
[327387808,1716037870757,-500.0,0.00033698,9]
[327387809,1716037870767,-500.0,0.00033698,9]
[327387810,1716037870778,-500.0,0.00033698,9]
[327387811,1716037870788,-778.21,0.00033698,9]
[327387812,1716037870799,-878.23,0.00033698,9]
[327387813,1716037870809,-500.0,0.00033698,9]
[327387814,1716037870820,-500.0,0.00033698,9]
[327387815,1716037870830,-500.0,0.00033698,9]
[327387816,1716037870841,-85.41695389,0.00033698,9]
[327387817,1716037871223,-1380.30322781,0.00032799,4]
[327387818,1716037871424,-500.0,0.00032876,2]
[327387819,1716037871435,-500.0,0.0003315,9]
[327387820,1716037871444,-3254.69677219,0.00033324,2]
[327387821,1716037871462,-1949.85178257,0.00033324,2]
[327387822,1716037871471,-500.0,0.00033424,9]
[327387823,1716037871481,-414.58304611,0.00033698,9]
[327387824,1716037871491,-500.0,0.00033698,9]
[327387825,1716037871501,-385.12229556,0.00033698,9]
[327387826,1716037871510,-500.0,0.00033698,9]
[327387827,1716037871520,-500.0,0.00033698,9]
[327387828,1716037871530,-500.0,0.00033698,9]
[327387829,1716037871539,-500.0,0.00033698,9]
[327387830,1716037871549,-500.0,0.00033698,9]
[327387831,1716037871560,-500.0,0.00033698,9]
[327387832,1716037871570,-500.0,0.00033698,9]
[327387833,1716037871579,-601.97,0.00033698,9]
[327387834,1716037871589,-500.0,0.00033698,9]
[327387835,1716037871598,-504.82,0.00033698,9]
[327387836,1716037871608,-500.0,0.00033698,9]
[327387837,1716037871618,-500.0,0.00033698,9]
[327387838,1716037871628,-710.61,0.00033698,9]
[327387839,1716037871638,-771.72,0.00033698,9]
[327387840,1716037871648,-500.0,0.00033698,9]
[327387841,1716037871658,-500.0,0.00033698,9]
[327387842,1716037871670,-226.36578491,0.00033698,9]
[327387843,1716037871680,-500.0,0.00033698,9]
[327387844,1716037871689,-500.0,0.00033698,9]
[327387845,1716037871699,-500.0,0.00033698,9]
[327387846,1716037871709,-500.0,0.00033698,9]
[327387847,1716037871719,-500.0,0.00033698,9]
[327387848,1716037871730,-502.22,0.00033698,9]
[327387849,1716037871739,-580.21,0.00033698,9]
[327387850,1716037871748,-500.0,0.00033698,9]
[327387851,1716037871757,-500.0,0.00033698,9]
[327387852,1716037871767,-500.0,0.00033698,9]
[327387853,1716037871776,-500.0,0.00033698,9]
[327387854,1716037871786,-500.0,0.00033698,9]
[327387855,1716037871796,-500.0,0.00033698,9]
[327387856,1716037871805,-500.0,0.00033698,9]
[327387857,1716037871815,-500.0,0.00033698,9]
[327387858,1716037871825,-500.0,0.00033698,9]
[327387859,1716037871835,-500.0,0.00033698,9]
[327387860,1716037871844,-506.13,0.00033698,9]
[327387861,1716037871853,-500.0,0.00033698,9]
[327387862,1716037871862,-581.63,0.00033698,9]
[327387863,1716037871872,-500.0,0.00033698,9]
[327387864,1716037871881,-150.35001926,0.00033698,9]
[327387865,1716037871891,-500.0,0.00033698,9]
[327387866,1716037871900,-20000.0,0.00033698,2]
[327387867,1716037871909,-3028.84,0.00033698,9]
[327387868,1716037871922,-500.0,0.00033698,9]
[327387869,1716037871931,-519.88,0.00033698,9]
[327387870,1716037871940,-500.0,0.00033698,9]
[327387871,1716037871949,-500.0,0.00033698,9]
[327387872,1716037871959,-564.0841337,0.00033698,9]
[327387873,1716037871968,-212.67791703,0.00033698,9]
[327387874,1716037871978,-500.0,0.00033698,9]
[327387875,1716037871987,-500.0,0.00033698,9]
[327387876,1716037871997,-500.0,0.00033698,9]
[327387877,1716037872011,-500.0,0.00033698,9]
[327387878,1716037872021,-500.0,0.00033698,9]
[327387879,1716037872030,-500.0,0.00033698,9]
[327387880,1716037872040,-500.0,0.00033698,9]
[327387881,1716037872051,-500.0,0.00033698,9]
[327387882,1716037872061,-500.0,0.00033698,9]
[327387883,1716037872070,-500.0,0.00033698,9]
[327387884,1716037872079,-500.0,0.00033698,9]
[327387885,1716037872092,-500.0,0.00033698,9]
[327387886,1716037872102,-2568.33,0.00033698,9]
[327387887,1716037872112,-500.0,0.00033698,9]
[327387888,1716037872122,-500.0,0.00033698,9]
[327387889,1716037872132,-500.0,0.00033698,9]
[327387890,1716037872142,-500.0,0.00033698,9]
[327387891,1716037872152,-524.6,0.00033698,9]
[327387892,1716037872161,-500.0,0.00033698,9]
[327387893,1716037872173,-500.0,0.00033698,9]
[327387894,1716037872182,-500.0,0.00033698,9]
[327387895,1716037872191,-500.0,0.00033698,9]
[327387896,1716037872200,-500.0,0.00033698,9]
[327387897,1716037872210,-548.74,0.00033698,9]
[327387898,1716037872220,-500.0,0.00033698,9]
[327387899,1716037872230,-500.0,0.00033698,9]
[327387900,1716037872240,-500.0,0.00033698,9]
[327387901,1716037872250,-449.14562634,0.00033698,9]
[327387902,1716037872259,-500.0,0.00033698,9]
[327387903,1716037872269,-500.0,0.00033698,9]
[327387904,1716037872279,-679.08,0.00033698,9]
[327387905,1716037872289,-500.0,0.00033698,9]
[327387906,1716037872298,-2023.72,0.00033698,9]
[327387907,1716037872308,-2168.11,0.00033698,9]
[327387908,1716037872318,-500.0,0.00033698,9]
[327387909,1716037872328,-500.0,0.00033698,9]
[327387910,1716037872338,-261.58940697,0.00033698,9]
[327387911,1716037872362,-238.41059303,0.00033698,9]
[327387912,1716037872372,-635.47500189,0.00033698,9]
[327387913,1716037872486,-1959.26499811,0.00033698,9]
[327387914,1716037872496,-1416.53,0.00033698,9]
[327387915,1716037872506,-500.0,0.00033698,9]
[327387916,1716037872516,-500.0,0.00033698,9]
[327387917,1716037872525,-500.0,0.00033698,9]